[Event "Titled Tuesday Blitz August 16 Late 2022"]
[White "Roman, Rodrigo"]
[Black "Avila Pavas, Santiago"]
[WhiteFideId "3701220"]
[BlackFideId "4437128"]
[WhiteElo "2001"]
[BlackElo "2291"]
[Result "1-0"]
[Round "03"]
[TimeControl "180+1"]
[Date "2022.08.16"]
[WhiteClock "0:00:04"]
[BlackClock "0:00:26"]

1. e4 {[%clk 0:02:31]}  Nf6 {[%clk 0:03:00]} 2. e5 {[%clk 0:02:31]}  Nd5 {[%clk 0:03:01]} 3. d4 {[%clk 0:02:32]}  d6 {[%clk 0:03:01]} 4. c4 {[%clk 0:02:33]}  Nb6 {[%clk 0:03:02]} 5. f4 {[%clk 0:02:34]}  dxe5 {[%clk 0:03:01]} 6. fxe5 {[%clk 0:02:35]}  Nc6 {[%clk 0:03:02]} 7. Nf3 {[%clk 0:02:35]}  Bg4 {[%clk 0:03:02]} 8. Be3 {[%clk 0:02:35]}  e6 {[%clk 0:03:02]} 9. Nc3 {[%clk 0:02:32]}  Be7 {[%clk 0:03:00]} 10. b3 {[%clk 0:02:16]}  Bxf3 {[%clk 0:02:47]} 11. gxf3 {[%clk 0:02:15]}  Bh4+ {[%clk 0:02:47]} 12. Ke2 {[%clk 0:02:13]}  Bg5 {[%clk 0:02:41]} 13. f4 {[%clk 0:02:12]}  Bh6 {[%clk 0:02:42]} 14. d5 {[%clk 0:02:07]}  exd5 {[%clk 0:02:27]} 15. cxd5 {[%clk 0:02:07]}  Ne7 {[%clk 0:02:27]} 16. Bg2 {[%clk 0:02:07]}  Nf5 {[%clk 0:02:25]} 17. Qd3 {[%clk 0:02:01]}  Nxe3 {[%clk 0:02:12]} 18. Qxe3 {[%clk 0:02:01]}  Qh4 {[%clk 0:02:12]} 19. Raf1 {[%clk 0:01:58]}  O-O {[%clk 0:02:11]} 20. Qg3 {[%clk 0:01:54]}  Qe7 {[%clk 0:02:08]} 21. Be4 {[%clk 0:01:48]}  Rfe8 {[%clk 0:02:00]} 22. Kf3 {[%clk 0:01:47]}  Qb4 {[%clk 0:01:58]} 23. Kg2 {[%clk 0:01:39]}  Rad8 {[%clk 0:01:58]} 24. Rf3 {[%clk 0:01:31]}  a5 {[%clk 0:01:19]} 25. Rd1 {[%clk 0:01:30]}  a4 {[%clk 0:01:18]} 26. bxa4 {[%clk 0:01:24]}  Nxa4 {[%clk 0:01:18]} 27. Nxa4 {[%clk 0:01:19]}  Qxa4 {[%clk 0:01:10]} 28. Re1 {[%clk 0:01:15]}  Qxa2+ {[%clk 0:01:10]} 29. Qf2 {[%clk 0:01:13]}  Qa5 {[%clk 0:01:06]} 30. Rb1 {[%clk 0:01:11]}  b5 {[%clk 0:01:04]} 31. Rfb3 {[%clk 0:01:09]}  Qa4 {[%clk 0:01:00]} 32. Qf3 {[%clk 0:01:09]}  Rb8 {[%clk 0:00:54]} 33. Rb4 {[%clk 0:01:09]}  Qa2+ {[%clk 0:00:54]} 34. R1b2 {[%clk 0:01:07]}  Qa5 {[%clk 0:00:55]} 35. Bd3 {[%clk 0:01:03]}  Qa1 {[%clk 0:00:49]} 36. Qe4 {[%clk 0:01:01]}  g6 {[%clk 0:00:49]} 37. Rb1 {[%clk 0:01:00]}  Qc3 {[%clk 0:00:46]} 38. R1b3 {[%clk 0:00:47]}  Qd2+ {[%clk 0:00:46]} 39. Qe2 {[%clk 0:00:47]}  Bxf4 {[%clk 0:00:46]} 40. Qxd2 {[%clk 0:00:32]}  Bxd2 {[%clk 0:00:47]} 41. Re4 {[%clk 0:00:32]}  Red8 {[%clk 0:00:40]} 42. Bxb5 {[%clk 0:00:20]}  Rxd5 {[%clk 0:00:38]} 43. Bc4 {[%clk 0:00:20]}  Rxb3 {[%clk 0:00:37]} 44. Bxb3 {[%clk 0:00:18]}  Rd3 {[%clk 0:00:35]} 45. Bc4 {[%clk 0:00:17]}  Re3 {[%clk 0:00:35]} 46. Rxe3 {[%clk 0:00:16]}  Bxe3 {[%clk 0:00:36]} 47. Kf3 {[%clk 0:00:16]}  Bd4 {[%clk 0:00:35]} 48. Ke4 {[%clk 0:00:17]}  Bc5 {[%clk 0:00:34]} 49. Kd5 {[%clk 0:00:17]}  Bb6 {[%clk 0:00:35]} 50. Kc6 {[%clk 0:00:18]}  Kf8 {[%clk 0:00:35]} 51. Kd7 {[%clk 0:00:18]}  Bg1 {[%clk 0:00:34]} 52. h3 {[%clk 0:00:18]}  Bh2 {[%clk 0:00:35]} 53. e6 {[%clk 0:00:18]}  f5 {[%clk 0:00:34]} 54. e7+ {[%clk 0:00:18]}  Kg7 {[%clk 0:00:32]} 55. e8=Q {[%clk 0:00:19]}  Bd6 {[%clk 0:00:18]} 56. Qf7+ {[%clk 0:00:18]}  Kh6 {[%clk 0:00:19]} 57. Qd5 {[%clk 0:00:13]}  Kg5 {[%clk 0:00:19]} 58. Qf3 {[%clk 0:00:13]}  h5 {[%clk 0:00:19]} 59. Bf7 {[%clk 0:00:13]}  Kf6 {[%clk 0:00:20]} 60. Be8 {[%clk 0:00:13]}  h4 {[%clk 0:00:19]} 61. Qg2 {[%clk 0:00:13]}  g5 {[%clk 0:00:20]} 62. Qd5 {[%clk 0:00:14]}  g4 {[%clk 0:00:20]} 63. hxg4 {[%clk 0:00:13]}  fxg4 {[%clk 0:00:20]} 64. Qe4 {[%clk 0:00:14]}  Kg5 {[%clk 0:00:21]} 65. Ke6 {[%clk 0:00:12]}  h3 {[%clk 0:00:21]} 66. Qg6+ {[%clk 0:00:06]}  Kh4 {[%clk 0:00:21]} 67. Kf5 {[%clk 0:00:04]}  Kg3 {[%clk 0:00:19]} 68. Qxg4+ {[%clk 0:00:04]}  Kf2 {[%clk 0:00:20]} 69. Qxh3 {[%clk 0:00:04]}  Ke2 {[%clk 0:00:21]} 70. Bc6 {[%clk 0:00:04]}  Kd2 {[%clk 0:00:21]} 71. Ke6 {[%clk 0:00:05]}  Kc2 {[%clk 0:00:22]} 72. Kd7 {[%clk 0:00:05]}  Kb2 {[%clk 0:00:23]} 73. Qd3 {[%clk 0:00:05]}  Ka2 {[%clk 0:00:23]} 74. Bd5+ {[%clk 0:00:05]}  Kb2 {[%clk 0:00:24]} 75. Qb3+ {[%clk 0:00:05]}  Kc1 {[%clk 0:00:24]} 76. Qa2 {[%clk 0:00:04]}  Kd1 {[%clk 0:00:25]} 77. Bc4 {[%clk 0:00:04]}  Ke1 {[%clk 0:00:26]} 78. Qe2# {[%clk 0:00:04]} 1-0


[Site "https://www.chess.com"]

[Event "Titled Tuesday Blitz August 16 Late 2022"]
[White "Rustemov, Alexander"]
[Black "Andreikin, Dmitry"]
[WhiteFideId "4119002"]
[BlackFideId "4158814"]
[WhiteElo "2793"]
[BlackElo "2736"]
[Result "0-1"]
[Round "03"]
[TimeControl "180+1"]
[Date "2022.08.16"]
[WhiteClock "0:00:01"]
[BlackClock "0:00:13"]

1. d4 {[%clk 0:03:00]}  Nf6 {[%clk 0:02:58]} 2. c4 {[%clk 0:03:01]}  g6 {[%clk 0:02:59]} 3. Nf3 {[%clk 0:03:01]}  Bg7 {[%clk 0:02:59]} 4. g3 {[%clk 0:03:02]}  b6 {[%clk 0:02:56]} 5. Bg2 {[%clk 0:03:01]}  Bb7 {[%clk 0:02:57]} 6. O-O {[%clk 0:03:01]}  O-O {[%clk 0:02:57]} 7. Bf4 {[%clk 0:03:00]}  d6 {[%clk 0:02:56]} 8. Nc3 {[%clk 0:02:54]}  Ne4 {[%clk 0:02:56]} 9. Nxe4 {[%clk 0:02:53]}  Bxe4 {[%clk 0:02:57]} 10. Qd2 {[%clk 0:02:53]}  c5 {[%clk 0:02:44]} 11. Bh6 {[%clk 0:02:43]}  Nd7 {[%clk 0:02:35]} 12. Rfd1 {[%clk 0:02:34]}  Nf6 {[%clk 0:02:31]} 13. Bxg7 {[%clk 0:02:31]}  Kxg7 {[%clk 0:02:31]} 14. Rac1 {[%clk 0:02:27]}  Qb8 {[%clk 0:02:24]} 15. b3 {[%clk 0:02:26]}  Qb7 {[%clk 0:02:24]} 16. Ne1 {[%clk 0:02:23]}  Rad8 {[%clk 0:02:21]} 17. Bxe4 {[%clk 0:02:20]}  Nxe4 {[%clk 0:02:17]} 18. Qe3 {[%clk 0:02:19]}  Nf6 {[%clk 0:02:05]} 19. Nf3 {[%clk 0:02:17]}  Qe4 {[%clk 0:02:04]} 20. Qxe4 {[%clk 0:02:16]}  Nxe4 {[%clk 0:02:05]} 21. Kg2 {[%clk 0:02:04]}  f5 {[%clk 0:02:05]} 22. Nd2 {[%clk 0:01:55]}  Nf6 {[%clk 0:01:58]} 23. Nf3 {[%clk 0:01:49]}  h6 {[%clk 0:01:59]} 24. Ne1 {[%clk 0:01:35]}  g5 {[%clk 0:01:57]} 25. f3 {[%clk 0:01:28]}  e5 {[%clk 0:01:55]} 26. dxc5 {[%clk 0:01:22]}  dxc5 {[%clk 0:01:54]} 27. Nd3 {[%clk 0:01:21]}  Rfe8 {[%clk 0:01:48]} 28. Nf2 {[%clk 0:01:17]}  f4 {[%clk 0:01:44]} 29. Rxd8 {[%clk 0:01:14]}  Rxd8 {[%clk 0:01:43]} 30. Rd1 {[%clk 0:01:15]}  Rxd1 {[%clk 0:01:17]} 31. Nxd1 {[%clk 0:01:14]}  Kf7 {[%clk 0:01:15]} 32. Nc3 {[%clk 0:01:13]}  Ke6 {[%clk 0:01:15]} 33. Kf2 {[%clk 0:01:12]}  h5 {[%clk 0:01:07]} 34. e3 {[%clk 0:01:11]}  fxg3+ {[%clk 0:01:04]} 35. hxg3 {[%clk 0:01:06]}  e4 {[%clk 0:00:48]} 36. f4 {[%clk 0:01:05]}  gxf4 {[%clk 0:00:47]} 37. gxf4 {[%clk 0:01:03]}  Ng4+ {[%clk 0:00:43]} 38. Kg3 {[%clk 0:00:55]}  Nxe3 {[%clk 0:00:41]} 39. Nxe4 {[%clk 0:00:56]}  Nf5+ {[%clk 0:00:34]} 40. Kf3 {[%clk 0:00:53]}  Nd4+ {[%clk 0:00:34]} 41. Kg3 {[%clk 0:00:51]}  Ne2+ {[%clk 0:00:34]} 42. Kf3 {[%clk 0:00:49]}  Nc1 {[%clk 0:00:34]} 43. Nc3 {[%clk 0:00:16]}  Kf5 {[%clk 0:00:34]} 44. Kg3 {[%clk 0:00:11]}  h4+ {[%clk 0:00:29]} 45. Kxh4 {[%clk 0:00:11]}  Kxf4 {[%clk 0:00:29]} 46. Nb5 {[%clk 0:00:10]}  a5 {[%clk 0:00:23]} 47. Nc7 {[%clk 0:00:10]}  Nxa2 {[%clk 0:00:18]} 48. Nd5+ {[%clk 0:00:09]}  Ke5 {[%clk 0:00:17]} 49. Nxb6 {[%clk 0:00:10]}  Nc1 {[%clk 0:00:17]} 50. Na4 {[%clk 0:00:02]}  Kd4 {[%clk 0:00:14]} 51. Kg5 {[%clk 0:00:01]}  Nxb3 {[%clk 0:00:14]} 52. Kf4 {[%clk 0:00:01]}  Nd2 {[%clk 0:00:13]} 0-1


[Site "https://www.chess.com"]

[Event "Titled Tuesday Blitz August 16 Late 2022"]
[White "Shimanov, Aleksandr"]
[Black "Putnam, Liam"]
[WhiteFideId "4198603"]
[BlackFideId "30938279"]
[WhiteElo "2605"]
[BlackElo "2035"]
[Result "1-0"]
[Round "03"]
[TimeControl "180+1"]
[Date "2022.08.16"]
[WhiteClock "0:00:47"]
[BlackClock "0:00:02"]

1. e4 {[%clk 0:03:00]}  e5 {[%clk 0:02:54]} 2. Nf3 {[%clk 0:03:00]}  Nc6 {[%clk 0:02:55]} 3. Nc3 {[%clk 0:03:01]}  Nf6 {[%clk 0:02:53]} 4. h3 {[%clk 0:03:01]}  Bc5 {[%clk 0:02:49]} 5. Nxe5 {[%clk 0:03:01]}  Nxe5 {[%clk 0:02:40]} 6. d4 {[%clk 0:03:00]}  Bd6 {[%clk 0:02:39]} 7. dxe5 {[%clk 0:02:59]}  Bxe5 {[%clk 0:02:40]} 8. Bd3 {[%clk 0:03:00]}  O-O {[%clk 0:02:40]} 9. O-O {[%clk 0:02:58]}  Re8 {[%clk 0:02:39]} 10. Re1 {[%clk 0:02:55]}  d6 {[%clk 0:02:35]} 11. Bd2 {[%clk 0:02:48]}  c6 {[%clk 0:02:29]} 12. Kh1 {[%clk 0:02:44]}  Be6 {[%clk 0:02:25]} 13. f4 {[%clk 0:02:44]}  Bd4 {[%clk 0:02:08]} 14. Qf3 {[%clk 0:02:44]}  Qb6 {[%clk 0:01:59]} 15. Rab1 {[%clk 0:02:41]}  Rad8 {[%clk 0:01:45]} 16. b4 {[%clk 0:02:18]}  d5 {[%clk 0:01:02]} 17. e5 {[%clk 0:02:15]}  Bxc3 {[%clk 0:00:50]} 18. Bxc3 {[%clk 0:02:03]}  Ne4 {[%clk 0:00:51]} 19. Bxe4 {[%clk 0:01:39]}  dxe4 {[%clk 0:00:51]} 20. Qxe4 {[%clk 0:01:40]}  Bxa2 {[%clk 0:00:51]} 21. Ra1 {[%clk 0:01:40]}  Bd5 {[%clk 0:00:51]} 22. Qe2 {[%clk 0:01:41]}  g6 {[%clk 0:00:37]} 23. f5 {[%clk 0:01:40]}  gxf5 {[%clk 0:00:32]} 24. Qh5 {[%clk 0:01:40]}  Re6 {[%clk 0:00:25]} 25. Qg5+ {[%clk 0:01:40]}  Rg6 {[%clk 0:00:25]} 26. Qxf5 {[%clk 0:01:10]}  Rxg2 {[%clk 0:00:24]} 27. Re4 {[%clk 0:01:11]}  Qf2 {[%clk 0:00:18]} 28. Qxf2 {[%clk 0:00:51]}  Rxf2 {[%clk 0:00:19]} 29. Kg1 {[%clk 0:00:51]}  Rxc2 {[%clk 0:00:05]} 30. Rg4+ {[%clk 0:00:52]}  Kf8 {[%clk 0:00:05]} 31. Bd4 {[%clk 0:00:52]}  b6 {[%clk 0:00:05]} 32. Rxa7 {[%clk 0:00:51]}  c5 {[%clk 0:00:06]} 33. Be3 {[%clk 0:00:47]}  Rb8 {[%clk 0:00:01]} 34. Bh6+ {[%clk 0:00:46]}  Ke8 {[%clk 0:00:02]} 35. Rg8# {[%clk 0:00:47]} 1-0


[Site "https://www.chess.com"]

[Event "Titled Tuesday Blitz August 16 Late 2022"]
[White "Silvestre, Christian"]
[Black "Stanojoski, Zvonko"]
[WhiteFideId "30956269"]
[BlackFideId "15000257"]
[WhiteElo "1942"]
[BlackElo "2364"]
[Result "1/2-1/2"]
[Round "03"]
[TimeControl "180+1"]
[Date "2022.08.18"]
[WhiteClock "0:00:00"]
[BlackClock "0:00:00"]

1. Nf3 {[%clk 0:00:00]}  d5 {[%clk 0:00:00]} 2. c3 {[%clk 0:00:00]}  c5 {[%clk 0:00:00]} 3. d4 {[%clk 0:00:00]}  e6 {[%clk 0:00:00]} 4. Bf4 {[%clk 0:00:00]}  Bd6 {[%clk 0:00:00]} 5. Bg3 {[%clk 0:00:00]}  Nf6 {[%clk 0:00:00]} 6. Nbd2 {[%clk 0:00:00]}  O-O {[%clk 0:00:00]} 7. e3 {[%clk 0:00:00]}  Qc7 {[%clk 0:00:00]} 8. Ne5 {[%clk 0:00:00]}  Nfd7 {[%clk 0:00:00]} 9. Nxd7 {[%clk 0:00:00]}  Nxd7 {[%clk 0:00:00]} 10. Bxd6 {[%clk 0:00:00]}  Qxd6 {[%clk 0:00:00]} 11. Nf3 {[%clk 0:00:00]}  h6 {[%clk 0:00:00]} 12. Bd3 {[%clk 0:00:00]}  Qb6 {[%clk 0:00:00]} 13. Qc2 {[%clk 0:00:00]}  c4 {[%clk 0:00:00]} 14. Be2 {[%clk 0:00:00]}  Re8 {[%clk 0:00:00]} 15. O-O {[%clk 0:00:00]}  e5 {[%clk 0:00:00]} 16. dxe5 {[%clk 0:00:00]}  Nxe5 {[%clk 0:00:00]} 17. Rad1 {[%clk 0:00:00]}  Qc5 {[%clk 0:00:00]} 18. Rd4 {[%clk 0:00:00]}  Nc6 {[%clk 0:00:00]} 19. Rd2 {[%clk 0:00:00]}  Be6 {[%clk 0:00:00]} 20. Rfd1 {[%clk 0:00:00]}  b5 {[%clk 0:00:00]} 21. Nd4 {[%clk 0:00:00]}  Ne5 {[%clk 0:00:00]} 22. Nf3 {[%clk 0:00:00]}  Nc6 {[%clk 0:00:00]} 23. Nd4 {[%clk 0:00:00]}  Ne7 {[%clk 0:00:00]} 24. Bf3 {[%clk 0:00:00]}  Rad8 {[%clk 0:00:00]} 25. h3 {[%clk 0:00:00]}  a5 {[%clk 0:00:00]} 26. Nxe6 {[%clk 0:00:00]}  fxe6 {[%clk 0:00:00]} 27. e4 {[%clk 0:00:00]}  Rf8 {[%clk 0:00:00]} 28. Bg4 {[%clk 0:00:00]}  Qb6 {[%clk 0:00:00]} 29. Re2 {[%clk 0:00:00]}  Rf6 {[%clk 0:00:00]} 30. exd5 {[%clk 0:00:00]}  Rxd5 {[%clk 0:00:00]} 31. Rde1 {[%clk 0:00:00]}  Rd6 {[%clk 0:00:00]} 32. Qe4 {[%clk 0:00:00]}  Nf5 {[%clk 0:00:00]} 33. Qa8+ {[%clk 0:00:00]}  Kh7 {[%clk 0:00:00]} 34. Bxf5+ {[%clk 0:00:00]}  Rxf5 {[%clk 0:00:00]} 35. Qe8 {[%clk 0:00:00]}  Rf6 {[%clk 0:00:00]} 36. Qh5 {[%clk 0:00:00]}  b4 {[%clk 0:00:00]} 37. Qg4 {[%clk 0:00:00]}  bxc3 {[%clk 0:00:00]} 38. bxc3 {[%clk 0:00:00]}  Qc6 {[%clk 0:00:00]} 39. Re4 {[%clk 0:00:00]}  Rg6 {[%clk 0:00:00]} 40. Qe2 {[%clk 0:00:00]}  Rd3 {[%clk 0:00:00]} 41. Qc2 {[%clk 0:00:00]}  Rxh3 {[%clk 0:00:00]} 42. Rg4 {[%clk 0:00:00]}  Rd3 {[%clk 0:00:00]} 43. Rxg6 {[%clk 0:00:00]}  Kxg6 {[%clk 0:00:00]} 44. Re3 {[%clk 0:00:00]}  Qd5 {[%clk 0:00:00]} 45. Rg3+ {[%clk 0:00:00]}  Kf7 {[%clk 0:00:00]} 46. Rg4 {[%clk 0:00:00]}  Qe5 {[%clk 0:00:00]} 47. Qc1 {[%clk 0:00:00]}  Rxc3 {[%clk 0:00:00]} 48. Qb1 {[%clk 0:00:00]}  Qf5 {[%clk 0:00:00]} 49. Qb7+ {[%clk 0:00:00]}  Ke8 {[%clk 0:00:00]} 50. Qc8+ {[%clk 0:00:00]}  Ke7 {[%clk 0:00:00]} 51. Rxg7+ {[%clk 0:00:00]}  Kf6 {[%clk 0:00:00]} 52. Qf8+ {[%clk 0:00:00]}  Ke5 {[%clk 0:00:00]} 53. Qc5+ {[%clk 0:00:00]}  Kf6 {[%clk 0:00:00]} 54. Qf8+ {[%clk 0:00:00]}  Ke5 {[%clk 0:00:00]} 55. Qc5+ {[%clk 0:00:00]}  Kf6 {[%clk 0:00:00]} 56. Qf8+ {[%clk 0:00:00]} 1/2-1/2


[Site "https://www.chess.com"]

[Event "Titled Tuesday Blitz August 16 Late 2022"]
[White "Tanenbaum, Zachary"]
[Black "Przybylski, Wojciech"]
[WhiteFideId "2060850"]
[BlackFideId "1117599"]
[WhiteElo "2175"]
[BlackElo "2133"]
[Result "1-0"]
[Round "03"]
[TimeControl "180+1"]
[Date "2022.08.18"]
[WhiteClock "0:00:00"]
[BlackClock "0:00:00"]

1. e4 {[%clk 0:00:00]}  c5 {[%clk 0:00:00]} 2. Nf3 {[%clk 0:00:00]}  e6 {[%clk 0:00:00]} 3. d4 {[%clk 0:00:00]}  cxd4 {[%clk 0:00:00]} 4. Nxd4 {[%clk 0:00:00]}  Nc6 {[%clk 0:00:00]} 5. Nc3 {[%clk 0:00:00]}  Qc7 {[%clk 0:00:00]} 6. g3 {[%clk 0:00:00]}  h5 {[%clk 0:00:00]} 7. Bg2 {[%clk 0:00:00]}  h4 {[%clk 0:00:00]} 8. Ndb5 {[%clk 0:00:00]}  Qb8 {[%clk 0:00:00]} 9. Bf4 {[%clk 0:00:00]}  Ne5 {[%clk 0:00:00]} 10. Qd4 {[%clk 0:00:00]}  f6 {[%clk 0:00:00]} 11. O-O-O {[%clk 0:00:00]}  a6 {[%clk 0:00:00]} 12. Nd6+ {[%clk 0:00:00]}  Bxd6 {[%clk 0:00:00]} 13. Qxd6 {[%clk 0:00:00]}  Qxd6 {[%clk 0:00:00]} 14. Rxd6 {[%clk 0:00:00]}  h3 {[%clk 0:00:00]} 15. Bf1 {[%clk 0:00:00]}  g5 {[%clk 0:00:00]} 16. Be3 {[%clk 0:00:00]}  b5 {[%clk 0:00:00]} 17. Be2 {[%clk 0:00:00]}  Ne7 {[%clk 0:00:00]} 18. Rhd1 {[%clk 0:00:00]}  g4 {[%clk 0:00:00]} 19. a3 {[%clk 0:00:00]}  N7c6 {[%clk 0:00:00]} 20. Bf4 {[%clk 0:00:00]}  Nf7 {[%clk 0:00:00]} 21. Bxg4 {[%clk 0:00:00]}  Nxd6 {[%clk 0:00:00]} 22. Bxd6 {[%clk 0:00:00]}  Ne5 {[%clk 0:00:00]} 23. Be2 {[%clk 0:00:00]}  Bb7 {[%clk 0:00:00]} 24. f4 {[%clk 0:00:00]}  Nc4 {[%clk 0:00:00]} 25. Bxc4 {[%clk 0:00:00]}  bxc4 {[%clk 0:00:00]} 26. Rd4 {[%clk 0:00:00]}  Rc8 {[%clk 0:00:00]} 27. Kd2 {[%clk 0:00:00]}  f5 {[%clk 0:00:00]} 28. exf5 {[%clk 0:00:00]}  exf5 {[%clk 0:00:00]} 29. Nd5 {[%clk 0:00:00]}  Kf7 {[%clk 0:00:00]} 30. Ne7 {[%clk 0:00:00]}  Rce8 {[%clk 0:00:00]} 31. Nxf5 {[%clk 0:00:00]}  Re4 {[%clk 0:00:00]} 32. Rxe4 {[%clk 0:00:00]}  Bxe4 {[%clk 0:00:00]} 33. Be5 {[%clk 0:00:00]}  Bxf5 {[%clk 0:00:00]} 34. Bxh8 {[%clk 0:00:00]}  d5 {[%clk 0:00:00]} 35. Bd4 {[%clk 0:00:00]}  Ke6 {[%clk 0:00:00]} 36. b3 {[%clk 0:00:00]}  cxb3 {[%clk 0:00:00]} 37. cxb3 {[%clk 0:00:00]}  Bg4 {[%clk 0:00:00]} 38. b4 {[%clk 0:00:00]}  Kf5 {[%clk 0:00:00]} 39. Ke3 {[%clk 0:00:00]}  Bh5 {[%clk 0:00:00]} 40. a4 {[%clk 0:00:00]}  Be8 {[%clk 0:00:00]} 41. a5 {[%clk 0:00:00]}  Kg4 {[%clk 0:00:00]} 42. Be5 {[%clk 0:00:00]}  Bd7 {[%clk 0:00:00]} 43. Kd4 {[%clk 0:00:00]}  Kf3 {[%clk 0:00:00]} 44. Kxd5 {[%clk 0:00:00]}  Kg2 {[%clk 0:00:00]} 45. f5 {[%clk 0:00:00]}  Bxf5 {[%clk 0:00:00]} 46. g4 {[%clk 0:00:00]}  Bxg4 {[%clk 0:00:00]} 47. b5 {[%clk 0:00:00]}  axb5 {[%clk 0:00:00]} 48. Kc5 {[%clk 0:00:00]}  Bf3 {[%clk 0:00:00]} 49. Kxb5 {[%clk 0:00:00]}  Be4 {[%clk 0:00:00]} 50. Kb6 {[%clk 0:00:00]}  Kf3 {[%clk 0:00:00]} 51. a6 {[%clk 0:00:00]}  Kg4 {[%clk 0:00:00]} 52. a7 {[%clk 0:00:00]}  Kf5 {[%clk 0:00:00]} 53. Bg3 {[%clk 0:00:00]}  Ke6 {[%clk 0:00:00]} 54. Kc7 {[%clk 0:00:00]}  Bf3 {[%clk 0:00:00]} 55. Kb8 {[%clk 0:00:00]}  Kd7 {[%clk 0:00:00]} 56. a8=Q {[%clk 0:00:00]}  Bxa8 {[%clk 0:00:00]} 57. Kxa8 {[%clk 0:00:00]}  Ke6 {[%clk 0:00:00]} 58. Kb7 {[%clk 0:00:00]}  Kf5 {[%clk 0:00:00]} 59. Kc6 {[%clk 0:00:00]}  Kg4 {[%clk 0:00:00]} 60. Kd5 {[%clk 0:00:00]}  Kf3 {[%clk 0:00:00]} 61. Ke5 {[%clk 0:00:00]}  Kg4 {[%clk 0:00:00]} 62. Kf6 {[%clk 0:00:00]}  Kh5 {[%clk 0:00:00]} 63. Kf5 {[%clk 0:00:00]}  Kh6 {[%clk 0:00:00]} 64. Kg4 {[%clk 0:00:00]}  Kg6 {[%clk 0:00:00]} 65. Kxh3 {[%clk 0:00:00]}  Kh6 {[%clk 0:00:00]} 66. Kg4 {[%clk 0:00:00]}  Kg6 {[%clk 0:00:00]} 67. h4 {[%clk 0:00:00]}  Kh6 {[%clk 0:00:00]} 68. h5 {[%clk 0:00:00]}  Kh7 {[%clk 0:00:00]} 69. Bf4 {[%clk 0:00:00]}  Kg7 {[%clk 0:00:00]} 70. Kg5 {[%clk 0:00:00]}  Kh7 {[%clk 0:00:00]} 71. h6 {[%clk 0:00:00]}  Kg8 {[%clk 0:00:00]} 72. Kg6 {[%clk 0:00:00]}  Kh8 {[%clk 0:00:00]} 73. Be5+ {[%clk 0:00:00]}  Kg8 {[%clk 0:00:00]} 74. h7+ {[%clk 0:00:00]}  Kf8 {[%clk 0:00:00]} 75. h8=Q+ {[%clk 0:00:00]} 1-0


[Site "https://www.chess.com"]

[Event "Titled Tuesday Blitz August 16 Late 2022"]
[White "Tatarinov, Dmitry"]
[Black "Reprintsev, Alexander"]
[WhiteFideId "24160067"]
[BlackFideId "14100541"]
[WhiteElo "2314"]
[BlackElo "2350"]
[Result "1-0"]
[Round "03"]
[TimeControl "180+1"]
[Date "2022.08.18"]
[WhiteClock "0:00:00"]
[BlackClock "0:00:00"]

1. d4 {[%clk 0:00:00]}  d5 {[%clk 0:00:00]} 2. c4 {[%clk 0:00:00]}  e5 {[%clk 0:00:00]} 3. dxe5 {[%clk 0:00:00]}  d4 {[%clk 0:00:00]} 4. Nf3 {[%clk 0:00:00]}  Nc6 {[%clk 0:00:00]} 5. a3 {[%clk 0:00:00]}  g6 {[%clk 0:00:00]} 6. Nbd2 {[%clk 0:00:00]}  Bg7 {[%clk 0:00:00]} 7. g3 {[%clk 0:00:00]}  Nh6 {[%clk 0:00:00]} 8. Bg2 {[%clk 0:00:00]}  O-O {[%clk 0:00:00]} 9. O-O {[%clk 0:00:00]}  Re8 {[%clk 0:00:00]} 10. b4 {[%clk 0:00:00]}  Ng4 {[%clk 0:00:00]} 11. Nb3 {[%clk 0:00:00]}  Ncxe5 {[%clk 0:00:00]} 12. Nfxd4 {[%clk 0:00:00]}  Nxc4 {[%clk 0:00:00]} 13. Bf4 {[%clk 0:00:00]} 1-0


[Site "https://www.chess.com"]

[Event "Titled Tuesday Blitz August 16 Late 2022"]
[White "Thiel, Thomas"]
[Black "Baches Garcia, Guillermo"]
[WhiteFideId "4615964"]
[BlackFideId "2209764"]
[WhiteElo "2230"]
[BlackElo "2326"]
[Result "1/2-1/2"]
[Round "03"]
[TimeControl "180+1"]
[Date "2022.08.18"]
[WhiteClock "0:00:00"]
[BlackClock "0:00:00"]

1. e4 {[%clk 0:00:00]}  c5 {[%clk 0:00:00]} 2. Nc3 {[%clk 0:00:00]}  d6 {[%clk 0:00:00]} 3. f4 {[%clk 0:00:00]}  g6 {[%clk 0:00:00]} 4. Nf3 {[%clk 0:00:00]}  Bg7 {[%clk 0:00:00]} 5. Bc4 {[%clk 0:00:00]}  e6 {[%clk 0:00:00]} 6. O-O {[%clk 0:00:00]}  Ne7 {[%clk 0:00:00]} 7. f5 {[%clk 0:00:00]}  gxf5 {[%clk 0:00:00]} 8. d3 {[%clk 0:00:00]}  Nbc6 {[%clk 0:00:00]} 9. Qe1 {[%clk 0:00:00]}  Nd4 {[%clk 0:00:00]} 10. Nxd4 {[%clk 0:00:00]}  cxd4 {[%clk 0:00:00]} 11. Ne2 {[%clk 0:00:00]}  O-O {[%clk 0:00:00]} 12. Nf4 {[%clk 0:00:00]}  fxe4 {[%clk 0:00:00]} 13. dxe4 {[%clk 0:00:00]}  Ng6 {[%clk 0:00:00]} 14. Nh5 {[%clk 0:00:00]}  Qh4 {[%clk 0:00:00]} 15. Qxh4 {[%clk 0:00:00]}  Nxh4 {[%clk 0:00:00]} 16. Bg5 {[%clk 0:00:00]}  Ng6 {[%clk 0:00:00]} 17. Nxg7 {[%clk 0:00:00]}  Kxg7 {[%clk 0:00:00]} 18. Bf6+ {[%clk 0:00:00]}  Kg8 {[%clk 0:00:00]} 19. Bxd4 {[%clk 0:00:00]}  e5 {[%clk 0:00:00]} 20. Be3 {[%clk 0:00:00]}  Be6 {[%clk 0:00:00]} 21. Bxe6 {[%clk 0:00:00]}  fxe6 {[%clk 0:00:00]} 22. Rxf8+ {[%clk 0:00:00]}  Kxf8 {[%clk 0:00:00]} 23. Rf1+ {[%clk 0:00:00]}  Ke8 {[%clk 0:00:00]} 24. Rf6 {[%clk 0:00:00]}  Nf8 {[%clk 0:00:00]} 25. Bh6 {[%clk 0:00:00]}  Ke7 {[%clk 0:00:00]} 26. Rxf8 {[%clk 0:00:00]}  Rxf8 {[%clk 0:00:00]} 27. Bxf8+ {[%clk 0:00:00]}  Kxf8 {[%clk 0:00:00]} 28. c4 {[%clk 0:00:00]}  Kf7 {[%clk 0:00:00]} 29. Kf2 {[%clk 0:00:00]}  Kg6 {[%clk 0:00:00]} 30. Kg3 {[%clk 0:00:00]}  Kg5 {[%clk 0:00:00]} 31. h4+ {[%clk 0:00:00]}  Kh5 {[%clk 0:00:00]} 32. Kh3 {[%clk 0:00:00]}  Kg6 {[%clk 0:00:00]} 33. g4 {[%clk 0:00:00]}  h6 {[%clk 0:00:00]} 34. Kg3 {[%clk 0:00:00]}  Kf6 {[%clk 0:00:00]} 35. Kf3 {[%clk 0:00:00]}  b6 {[%clk 0:00:00]} 36. Ke3 {[%clk 0:00:00]}  Ke7 {[%clk 0:00:00]} 37. Kf3 {[%clk 0:00:00]}  Kf6 {[%clk 0:00:00]} 1/2-1/2


[Site "https://www.chess.com"]